Workbook

Sheet BOM
A1: Subsystem | B1: Manufacturer | C1: Part Number | D1: Qty | E1: Designator | F1: Description | G1: Package | H1: Est. Cost | I1: Qty | J1: Source | K1: Length | L1: Width | M1: Height | N1: Depth | O1: Units | P1: Length | Q1: Width | R1: Height | S1: Depth | T1: Units
A2: +12v Supply | D2: =1+LEN(E2)-LEN(SUBSTITUTE(E2,",","")) -> 1 | E2: C1 | F2: 0.68 uF | H2: 0.15 | P2: =IF(AND($O2<>"",K2<>""),K2*VLOOKUP($O2,$A$64:$B$66,2),"") ->  | T2: =IF(O2<>"",IF(O2=$A$66,$A$65,$A$66),"") -> 
A3: +12v Supply | D3: 1 | E3: C12 | F3: 0.47 uF | H3: 0.15
A4: +12v Supply | D4: 1 | E4: C14 | F4: 10 uF 75v | H4: 0.25
A5: +12v Supply | D5: 1 | E5: C17 | F5: 0.1uF | H5: 0.08
A6: +12v Supply | D6: 1 | E6: C2 | F6: 100 uF 15v | H6: 0.35 | P6: =IF(AND($O6<>"",K6<>""),K6*VLOOKUP($O6,$A$64:$B$66,2),"") ->  | Q6: =IF(AND($O6<>"",L6<>""),L6*VLOOKUP($O6,$A$64:$B$66,2),"") ->  | R6: =IF(AND($O6<>"",M6<>""),M6*VLOOKUP($O6,$A$64:$B$66,2),"") ->  | S6: =IF(AND($O6<>"",N6<>""),N6*VLOOKUP($O6,$A$64:$B$66,2),"") -> 
A7: +12v Supply | D7: 1 | E7: C3 | F7: 10 nF | H7: 0.05
A8: +12v Supply | D8: 1 | E8: C4 | F8: 2.2 nF | H8: 0.05
A9: +12v Supply | B9: On Semi | C9: MBRS360BT3G | D9: 1 | E9: D1 | F9: 4A, 60v | G9: SMB | H9: 0.29916 | I9: 250 | J9: Digi-Key | K9: 8.13 | L9: 6.1 | M9: 2.41 | O9: mm | P9: 0.3200787402 | Q9: 0.2401574803 | R9: 0.09488188976 | T9: inch
A10: +12v Supply | B10: Linear Tech | C10: LT3690EUFE#PBF | D10: 1 | E10: IC4 | F10: Switching P.S. | H10: 6.01 | I10: 100 | J10: Digi-Key | K10: 6 | L10: 4 | M10: 0.75 | O10: mm | P10: 0.2362204724 | Q10: 0.157480315 | R10: 0.02952755906 | T10: inch
A11: +12v Supply | C11: R? | D11: 1 | E11: R15 | H11: 0.01
A12: +12v Supply | D12: 1 | E12: R31 | H12: 0.01
A13: +12v Supply | D13: 1 | E13: R32 | H13: 0.01
A14: +12v Supply | C14: R? | D14: 1 | E14: R33 | H14: 0.01
A15: +12v Supply | D15: 1 | E15: R33 | F15: 820K | H15: 0.01
A16: +12v Supply | D16: 1 | E16: R4 | F16: 82K | H16: 0.01
A17: +12v Supply | B17: TDK Corp | C17: SLF12575T-470M2R7-H | D17: 1 | E17: T2 | F17: 47 uH, 2.7A (2.7A Sat) | H17: 0.825 | I17: 500 | J17: Digi-Key | K17: 12.5 | L17: 12.5 | M17: 7.5 | O17: mm | P17: 0.4921259843 | Q17: 0.4921259843 | R17: 0.2952755906 | T17: inch
A18: +3.3v Supply | B18: TDK Corp | C18: C1005X5R1A104M | D18: 1 | E18: C10 | F18: 0.1uF, 10v, 20% | G18: 0402 | H18: 0.01364 | I18: 250 | J18: Digi-Key | K18: 1 | L18: 0.5 | O18: mm | P18: 0.03937007874 | Q18: 0.01968503937 | T18: inch
A19: +3.3v Supply | B19: Panasonic | C19: EEE-1JA220UP | D19: 1 | E19: C18 | F19: 22uF 63v | G19: CAN SMD | H19: 0.26 | I19: 250 | J19: Digi-Key | K19: 8 | L19: 8 | M19: 6.2 | O19: mm | P19: 0.3149606299 | Q19: 0.3149606299 | R19: 0.2440944882 | T19: inch
A20: +3.3v Supply | B20: TDK Corp | C20: C2012X7R2A104M | D20: 1 | E20: C6 | F20: 0.1uF, 100v, 20% | G20: 0805 | H20: 0.075 | I20: 250 | J20: Digi-Key | K20: 2 | L20: 1.25 | M20: 1.45 | O20: mm | P20: 0.07874015748 | Q20: 0.04921259843 | R20: 0.05708661417 | T20: inch
A21: +3.3v Supply | B21: NXP | C21: BAS16,215 | D21: 1 | E21: D3 | F21: 215mA, 10v, 250mW | G21: SOT-23 | H21: 0.04752 | I21: 250 | J21: Digi-Key | K21: 3.04 | L21: 2.64 | M21: 1.22 | O21: mm | P21: 0.1196850394 | Q21: 0.1039370079 | R21: 0.04803149606 | T21: inch
A22: +3.3v Supply | B22: National | C22: LM2936DT-3.3 | D22: 1 | E22: IC3 | F22: 3.3v Regulator | G22: TO-252 | H22: 1.54 | I22: 250 | J22: Digi-Key | K22: 9.7 | L22: 6.58 | M22: 2.3 | O22: mm | P22: 0.3818897638 | Q22: 0.2590551181 | R22: 0.0905511811 | T22: inch
A23: Keypad | B23: FCI | C23: SFW8S-2STME1LF | D23: 1 | E23: J2 | F23: 8-pin flex cable connector | G23: SMD | H23: 0.5662 | I23: 250 | J23: Digi-Key | K23: 14.4 | L23: 3.6 | M23: 5.3 | O23: mm | P23: 0.5669291339 | Q23: 0.1417322835 | R23: 0.2086614173 | T23: inch
A24: Keypad | B24: Micro Commercial Co | C24: MMBTA05-TP | D24: 1 | E24: Q1 | F24: NPN, 500 mA, 60v, Beta 100 | G24: SOT-23 | H24: 0.08552 | I24: 250 | J24: Digi-Key | K24: 3.04 | L24: 2.64 | M24: 1.22 | O24: mm | P24: 0.1196850394 | Q24: 0.1039370079 | R24: 0.04803149606 | T24: inch
A25: Keypad | B25: Panasonic | C25: ERJ-2RKF2051X | D25: 1 | E25: R14 | F25: 2.050K 0.1W 1% | G25: 0402 | H25: 0.01364 | I25: 250 | J25: Digi-Key | K25: 1 | L25: 0.5 | M25: 0.4 | O25: mm | P25: 0.03937007874 | Q25: 0.01968503937 | R25: 0.0157480315 | T25: inch
A26: Keypad | B26: Panasonic | C26: ERJ-2RKF1001X | D26: 5 | E26: R20, R21, R22, R23, R24 | F26: 1.000K 0.1W 1% | G26: 0402 | H26: 0.01364 | I26: 250 | J26: Digi-Key | K26: 1 | L26: 0.5 | M26: 0.4 | O26: mm | P26: 0.03937007874 | Q26: 0.01968503937 | R26: 0.0157480315 | T26: inch
A27: Keypad | D27: 1 | E27: R28 | F27: ???R LED Current Limit
A28: Keypad | B28: Mallory | C28: PK-12N40PQ | D28: 1 | E28: SG1 | F28: Acoustic Signal, 4.1kHz, 3-15v, -20to90C | H28: 2.2058 | I28: 100 | J28: Digi-Key | K28: 14 | L28: 14 | M28: 7.7 | O28: mm | P28: 0.5511811024 | Q28: 0.5511811024 | R28: 0.3031496063 | T28: inch
A29: LIN | B29: TDK Corp | C29: C2012X7R2A104M | D29: 1 | E29: C15 | F29: 0.1uF, 100v, 20% | G29: 0805 | H29: 0.075 | I29: 250 | J29: Digi-Key | K29: 2 | L29: 1.25 | O29: mm | P29: 0.07874015748 | Q29: 0.04921259843 | T29: inch
A30: LIN | B30: TDK Corp | C30: C1608C0G2A221J | D30: 1 | E30: C5 | F30: 220pF, 100v, 5% | G30: 0603 | H30: 0.039 | I30: 250 | J30: Digi-Key | K30: 1.6 | L30: 0.8 | M30: 0.95 | O30: mm | P30: 0.06299212598 | Q30: 0.03149606299 | R30: 0.0374015748 | T30: inch
A31: LIN | D31: 1 | E31: D8 | F31: 27v Zener
A32: LIN | B32: Infineon | C32: TLE7259-2GU | D32: 1 | E32: IC5 | F32: LIN Transceiver | G32: 8-SOIC | H32: 1.2693 | I32: 100 | J32: Digi-Key | K32: 5 | L32: 6 | M32: 1.75 | O32: mm | P32: 0.1968503937 | Q32: 0.2362204724 | R32: 0.0688976378 | T32: inch
A33: LIN | D33: 1 | E33: Q2 | F33: NPN, 500 mA, 60v, Beta 100 | G33: SOT-23 | H33: 0.08552 | I33: 250 | J33: Digi-Key | K33: 3.04 | L33: 2.64 | M33: 1.22 | O33: mm | P33: 0.1196850394 | Q33: 0.1039370079 | R33: 0.04803149606 | T33: =IF(O33<>"",IF(O33=$A$66,$A$65,$A$66),"") -> inch
A34: LIN | D34: 1 | E34: Q3 | F34: N-ch MOSFET
A35: LIN | B35: Panasonic | C35: ERJ-2RKF1003X | D35: 1 | E35: R30 | F35: 100K, 0.1W, 1% | G35: 0402 | H35: 0.01364 | I35: 250 | J35: Digi-Key | K35: 1 | L35: 0.5 | M35: 0.4 | O35: mm | P35: 0.03937007874 | Q35: 0.01968503937 | R35: 0.0157480315 | T35: inch
A36: LIN | D36: 1 | E36: R34 | F36: R? | H36: 0.01
A37: LIN | D37: 1 | E37: R35 | F37: R? | H37: 0.01
A38: Micro | B38: TDK Corp | C38: C1005X5R1A104M | D38: 1 | E38: C11 | F38: 0.1uF, 10v, 20% | G38: 0402 | H38: 0.01364 | I38: 250 | J38: Digi-Key | K38: 1 | L38: 0.5 | O38: mm | T38: inch
A39: Micro | B39: Microchip | C39: PIC18F25K22-E/SO-ND | D39: 1 | E39: IC2 | F39: Microprocessor | H39: 2.08 | I39: 300 | J39: Digi-Key | K39: 17.9 | L39: 10.3 | M39: 2.65 | O39: mm | P39: =IF(AND($O39<>"",K39<>""),K39*VLOOKUP($O39,$A$64:$B$66,2),"") -> 0.7047244094 | Q39: =IF(AND($O39<>"",L39<>""),L39*VLOOKUP($O39,$A$64:$B$66,2),"") -> 0.405511811 | R39: =IF(AND($O39<>"",M39<>""),M39*VLOOKUP($O39,$A$64:$B$66,2),"") -> 0.1043307087 | S39: =IF(AND($O39<>"",N39<>""),N39*VLOOKUP($O39,$A$64:$B$66,2),"") ->  | T39: inch
A40: Micro | B40: Sullins | C40: NPPC071KFXD | D40: 1 | E40: J1 | F40: Programming connector, or NPPC071KFXC w/PCB change | H40: 0.644 | I40: 250 | J40: Digi-Key | K40: 18.28 | L40: 2.5 | M40: 7.1 | O40: mm | P40: 0.7196850394 | Q40: 0.09842519685 | R40: 0.2795275591 | T40: inch
A41: Micro | B41: Panasonic | C41: ERJ-8GEYJ101V | D41: 1 | E41: R5 | F41: 100R 1/4W 5% | G41: 1206 | H41: 0.01364 | I41: 250 | J41: Digi-Key | K41: 3.2 | L41: 1.6 | M41: 0.7 | O41: mm | P41: 0.125984252 | Q41: 0.06299212598 | R41: 0.02755905512 | T41: inch
A42: Motor | B42: TDK Corp | C42: C2012X7R2A104M | D42: 1 | E42: C13 | F42: 0.1uF, 100v, 20% | G42: 0805 | H42: 0.075 | I42: 250 | J42: Digi-Key | K42: 2 | L42: 1.25 | O42: mm | P42: 0.07874015748 | Q42: 0.04921259843 | T42: inch
A43: Motor | B43: Infineon | C43: TLE5205-2G | D43: 1 | E43: IC1 | F43: H-Bridge | G43: TO-263 | H43: 5.4107 | I43: 100 | J43: Digi-Key | K43: 15 | L43: 10 | M43: 4.4 | O43: mm | P43: 0.5905511811 | Q43: 0.3937007874 | R43: 0.1732283465 | T43: inch
A44: Motor | B44: Mabuchi | C44: FC280SC-20150 | D44: 1 | E44: Motor | F44: Motor | H44: 1.95 | I44: 100 | J44: Kysan | K44: 45 | L44: 24.2 | M44: 18.3 | O44: mm | P44: 1.771653543 | Q44: 0.9527559055 | R44: 0.7204724409 | T44: inch
A45: Motor | B45: Panasonic | C45: ERJ-2RKF1003X | D45: =1+LEN(E45)-LEN(SUBSTITUTE(E45,",","")) -> 1 | E45: R27 | F45: 100K, 0.1W, 1% | G45: 0402 | H45: 0.01364 | I45: 250 | J45: Digi-Key | K45: 1 | L45: 0.5 | M45: 0.4 | O45: mm | P45: 0.03937007874 | Q45: 0.01968503937 | R45: 0.0157480315 | T45: inch
A46: Sense | B46: TDK Corp | C46: C1005X7S2A103K | D46: 3 | E46: C7,C8,C9 | F46: 0.01uF 60v | H46: 0.02924 | I46: 250 | J46: Digi-Key | K46: 1 | L46: 0.5 | M46: 0.55 | O46: mm | P46: 0.03937007874 | Q46: 0.01968503937 | R46: 0.02165354331 | T46: inch
A47: Sense | B47: Panasonic | C47: ERJ-2RKF1003X | D47: 3 | E47: R1,R9,R18 | F47: 100K, 0.1W, 1% | G47: 0402 | H47: 0.01364 | I47: 250 | J47: Digi-Key | K47: 1 | L47: 0.5 | M47: 0.4 | O47: mm | P47: 0.03937007874 | Q47: 0.01968503937 | R47: 0.0157480315 | T47: inch
A48: Sense | B48: Panasonic | C48: ERJ-2RKF8871X | D48: 3 | E48: R2,R10,R19 | F48: 8870R, 0.1W, 1% | G48: 0402 | H48: 0.01364 | I48: 250 | J48: Digi-Key | K48: 1 | L48: 0.5 | M48: 0.4 | O48: mm | P48: 0.03937007874 | Q48: 0.01968503937 | R48: 0.0157480315 | T48: inch
A49: Wake Out | B49: TDK Corp | C49: C2012X7R2A104M | D49: 1 | E49: C16 | F49: 0.1uF, 100v, 20% | G49: 0805 | H49: 0.075 | I49: 250 | J49: Digi-Key | K49: 2 | L49: 1.25 | O49: mm | P49: 0.07874015748 | Q49: 0.04921259843 | T49: inch
A50: Wake Out | B50: Infineon | C50: BSP452 | D50: 1 | E50: IC6 | F50: High side switch | G50: SOT-223 | H50: 1.4281 | I50: 100 | J50: Digi-Key | K50: 6.5 | L50: 7 | M50: 1.7 | O50: mm | P50: 0.2559055118 | Q50: 0.2755905512 | R50: 0.06692913386 | T50: inch
A51: Development | B51: Panasonic | C51: LNJ308G8LRA | D51: 3 | E51: LED1, LED2, LED3 | F51: Green LEDs (-30 to +85) | G51: 0603 | H51: 0.139 | I51: 250 | J51: Digi-Key | K51: 1.6 | L51: 0.8 | M51: 0.8 | O51: mm | P51: 0.06299212598 | Q51: 0.03149606299 | R51: 0.03149606299 | T51: inch
H61: =SUM(H2:H60) -> 26.49682
A64: Unit Lookup | B64: To alternate
A65: inch | B65: =1/B66 -> 25.4
A66: mm | B66: =1/25.4 -> 0.03937007874
A75: Row Labels | B75: Sum of Est. Cost
A76: +12v Supply | B76: 7.13416
A77: +3.3v Supply | B77: 1.93616
A78: Keypad | B78: 2.3186
A79: LIN | B79: 1.48246
A80: Micro | B80: 2.10728
A81: Motor | B81: 7.44934
A82: Sense | B82: 0.05652
A83: Wake Out | B83: 1.5031
A84: (blank)
A85: Grand Total | B85: 23.98762

Sheet LT3690 PS
A1: Signal | B1: Value | C1: Units | D1: Notes | F1: Based on LT3690
A2: V-IN | B2: 28 | C2: v | D2: Typical V-in
A3: V-OUTOL | B3: 38 | C3: v | D3: Overload shutdown
A4: V-OUT Desired | B4: 12 | C4: v
A5: R3 | B5: =B6*(B4/B8-1) -> 536200 | C5: ohms
A6: R4 | B6: 38300 | C6: ohms
A7: RT | B7: 17000 | C7: ohms
A8: V-FB | B8: 0.8 | C8: v
A9: V-SW | B9: 0.37 | C9: v
A10: V-LS | B10: 0.12 | C10: v
A11: T-ON(min) | B11: 2.1e-07 | C11: sec
A12: T-OFF(min) | B12: 2.1e-07 | C12: sec
A13: Fsw(max) | B13: =(B4+B10)/(B11*(B2-B9+B10))/1000000 -> 2.07979408 | C13: MHz | D13: Highest acceptible frequency
A14: Inductory | B14: 0.47 | C14: uHenry
A15: DC-min | B15: =B13*B11*1000000 -> 0.4367567568 | C15: % duty cycle
A16: DC-max | B16: =1-1000000*B13*B12 -> 0.5632432432 | C16: % duty cycle
A19: V-IN(min) | B19: =(B4+B10)/(1-1000000*B13*B12)-B10+B9 -> 21.76823417 | C19: v by duty cycle
A20: V-IN(max) | B20: =(B4+B10)/(1000000*B13*B11)-B10+B9 -> 28 | C20: v by duty cycle
A22: I-L(peak) | B22: =8+(B20-B3)/(0.000001*B14)*B11 -> 3.531914894 | C22: A

Sheet PIC Load Dump
A1: Signal | B1: Value | C1: Units | D1: Notes
A2: Battery | B2: 32 | C2: v
A3: R1 | B3: 200 | C3: ohm
A4: R2 | B4: 12.5 | C4: ohm
A5: V analog in | B5: =B2*B4/(B3+B4) -> 1.882352941 | C5: v
A6: V analog in min | B6: =0.99*B5 -> 1.863529412 | C6: v | D6: 1% resistors low
A7: V analog in max | B7: =1.01*B5 -> 1.901176471 | C7: v | D7: 1% resistors high
A10: DAC Vsrc+ min | B10: =B24 -> 1.884 | C10: v
A11: DAC Vsrc+ max | B11: =B25 -> 2.191 | C11: v
A12: DAC Vsrc- | B12: 0 | C12: v
A13: DACR | B13: 31 | C13: count | D13: DAC setting from 0 to 31
A14: DAC Vout min | B14: =((B10-B12)*B13/32)+B12 -> 1.825125 | C14: v
A15: DAC Vout max | B15: =((B11-B12)*B13/32)+B12 -> 2.12253125
A17: PIC Vcc | B17: 3.3 | C17: v
A18: PIC Vcc min | B18: =0.99*B17 -> 3.267 | C18: v | D18: 1% low
A19: PIC Vcc max | B19: =1.01*B17 -> 3.333 | C19: v | D19: 1% high
A21: FVR | B21: 1.024 | C21: v
A22: Vrout min | B22: 1.946 | C22: v | D22: To ADC
A23: Vrout max | B23: 2.171 | C23: v | D23: To ADC
A24: Vrout min | B24: 1.884 | C24: v | D24: To other modules
A25: Vrout max | B25: 2.191 | C25: v | D25: To other modules

Sheet Mechanical
A1: Origin for PCB | B1: Lower left corner | D1: from 5 Jan 2012 email | K1: Values | L1: mm | M1: Value | N1: in
A2: PCB width | B2: 1.179 | C2: in | K2: 25.4 | L2: mm | M2: =K2/25.4 -> 1 | N2: in | O2: test
A3: PCB height | B3: 3.25 | C3: in | K3: 4.034 | L3: mm | M3: =K3/25.4 -> 0.1588188976 | N3: in | O3: Ledge Diameter
A4: Hole 1 x (bottom left) | B4: =B2/2-0.315 -> 0.2745 | K4: 2.733 | L4: mm | M4: 0.1075984252 | N4: in | O4: Post Diameter
A5: Hole 1 y | B5: =(B3-2.972)/2 -> 0.139 | C5: image does not look symmetrical | K5: 5 | L5: mm | M5: 0.1968503937 | N5: in | O5: Ramp width
A6: Hole 2 x (top-left) | B6: =B4 -> 0.2745 | K6: 25.637 | L6: mm | M6: 1.009330709 | N6: in | O6: lower post to lower diag rib
A7: Hole 2 y | B7: =B5+2.972 -> 3.111 | K7: 3.262 | L7: mm | M7: 0.1284251969 | N7: in | O7: =1.139+0.128 -> 1.267
A8: Hole 3 x (top-right) | B8: =B4+0.6299 -> 0.9044 | K8: 23.95 | L8: mm | M8: 0.9429133858 | N8: in | O8: =3.111-M8 -> 2.168086614
A9: Hole 3 y | B9: =B7 -> 3.111 | K9: 12.9 | L9: mm | M9: 0.5078740157 | N9: in
A10: Hole 4 x (bottom-right) | B10: =B8 -> 0.9044
A11: Hole 4 y | B11: =B5 -> 0.139
A12: notch 1 x (center) | B12: =B2/2-0.646 -> -0.0565
A13: notch 1 y | B13: 2.325
A14: notch 2 x | B14: =B2/2+0.648 -> 1.2375
A15: notch 2 y | B15: =B13 -> 2.325

Sheet Block Cost
A1: Functional Block | B1: Est. Cost | C1: Qty | E1: Notes
A2: Micro | B2: 4.5 | C2: 2000 | E2: micro, crystal, caps
A3: Config Storage | B3: 0.25 | C3: 2000 | E3: eerom
A4: Power Supply | B4: 4 | C4: 2000 | E4: switching
A5: Learn Mode | B5: 0.1 | C5: 2000 | E5: 2xR, 1xC
A6: Wakeup In | B6: 0.25 | C6: 2000
A7: Wakeup Out | B7: 1 | C7: 2000
A8: LIN Transceiver | B8: 1 | C8: 2000
A9: CAN Transceiver | B9: 1 | C9: 2000 | E9: xcvr, filter, diodes
A10: H-Driver | B10: 3.75 | C10: 2000
A11: LED Driver | B11: 0.1 | C11: 2000
A12: Keypad Sense | B12: 0.25 | C12: 2000
A13: Acoustic Signal | B13: 2.25 | C13: 2000 | E13: need to find -40 to +85 part
A14: Miscellaneous | B14: 3 | C14: 2000 | E14: whatever was forgotton above
A15: Estimated Total | B15: =SUM(B2:B14) -> 21.45
A19: Estimated costs includes the primary and supporting components
B24: LIN | C24: CAN | D24: JD Exclusive | E24: Description
B25: Yes | C25: No | D25: No | E25: smaller micro, no JD/OS
B26: No | C26: Yes | D26: Yes | E26: JD/OS, "fully integrated"
B27: No | C27: Yes | D27: No | E27: powerful micro, ~25-50,000 lines of code

Sheet Battery Sense
A1: Description | B1: Value | C1: Units | E1: Step | F1: DAC | G1: Threshold
A2: Rtop | B2: 100000 | C2: ohm | E2: 0 | F2: =E2*$B$5/32 -> 0 | G2: =F2*($B$2+$B$3)/$B$3 -> 0
A3: Rbottom | B3: 8870 | C3: ohm | E3: 1 | F3: =E3*$B$5/32 -> 0.103125 | G3: 1.265751832
E4: 2 | F4: 0.20625 | G4: 2.531503664
A5: Varef | B5: 3.3 | C5: v | E5: 3 | F5: 0.309375 | G5: 3.797255496
A6: Voltage - Minimum | B6: 8 | C6: v | E6: 4 | F6: 0.4125 | G6: 5.063007328
A7: Voltage - Maximum | B7: 40 | C7: v | E7: 5 | F7: 0.515625 | G7: 6.32875916
E8: 6 | F8: 0.61875 | G8: 7.594510992
A9: Current - Max | B9: =1000*40/(B2+B3) -> 0.3674106733 | C9: mA | E9: 7 | F9: 0.721875 | G9: 8.860262824
A10: Power Dissipation | B10: =1000*B7^2/(B2+B3) -> 14.69642693 | C10: mW | E10: 8 | F10: 0.825 | G10: 10.12601466
E11: 9 | F11: 0.928125 | G11: 11.39176649
A12: # A/D bits | B12: 12 | C12: bits | E12: 10 | F12: 1.03125 | G12: 12.65751832
E13: 11 | F13: 1.134375 | G13: 13.92327015
A14: Volts / bit | B14: =B$5/2^B$12 -> 0.0008056640625 | C14: v | E14: 12 | F14: 1.2375 | G14: 15.18902198
A15: V a/d at Min | B15: =B6*B$3/(B$2+B$3) -> 0.6517865344 | C15: v | D15: =DEC2HEX(B18) -> 329 | E15: 13 | F15: 1.340625 | G15: 16.45477382
A16: V a/d at Max | B16: =B7*B$3/(B$2+B$3) -> 3.258932672 | C16: v | E16: 14 | F16: 1.44375 | G16: 17.72052565
E17: 15 | F17: 1.546875 | G17: 18.98627748
A18: A/D counts at min | B18: =B15/B$5*2^B$12 -> 809.0053469 | C18: counts | E18: 16 | F18: 1.65 | G18: 20.25202931
A19: A/D counts at max | B19: =B16/B$5*2^B$12 -> 4045.026735 | C19: counts | E19: 17 | F19: 1.753125 | G19: 21.51778114
E20: 18 | F20: 1.85625 | G20: 22.78353298
E21: 19 | F21: 1.959375 | G21: 24.04928481
A22: Vthreshold | B22: 34 | C22: v | E22: 20 | F22: 2.0625 | G22: 25.31503664
A23: V a/d at threshold | B23: =B22*B$3/(B$2+B$3) -> 2.770092771 | E23: 21 | F23: 2.165625 | G23: 26.58078847
E24: 22 | F24: 2.26875 | G24: 27.8465403
E25: 23 | F25: 2.371875 | G25: 29.11229214
E26: 24 | F26: 2.475 | G26: 30.37804397
E27: 25 | F27: 2.578125 | G27: 31.6437958
E28: 26 | F28: 2.68125 | G28: 32.90954763
E29: 27 | F29: 2.784375 | G29: 34.17529946
E30: 28 | F30: 2.8875 | G30: 35.4410513
E31: 29 | F31: 2.990625 | G31: 36.70680313
E32: 30 | F32: 3.09375 | G32: 37.97255496
E33: 31 | F33: 3.196875 | G33: =F33*($B$2+$B$3)/$B$3 -> 39.23830679

Sheet LED Backlight
B1: Value | C1: Units | E1: Notes
A2: LED Voltage Drop | B2: 3.2 | C2: v | E2: Touch Panel Manufacturer and TriMark have not yet determined configuration
A3: LED Max Current | B3: 0.02 | C3: A
A4: # LEDs in Series | B4: 2 | C4: pc
A5: Resistance - Series | B5: 130 | C5: ohm
A6: Voltage - Minimum | B6: 9 | C6: v
A7: Voltage - Maximum | B7: 32 | C7: v
A10: Current at Vmin | B10: =(B6-B$4*B$2)/B$5 -> 0.02 | C10: A
A11: Current at Vmax | B11: =(B7-B$4*B$2)/B$5 -> 0.1969230769 | C11: A
A17: LEDs tied to 12v supply | B17: Value | C17: Units
A18: LED Current at 12v | B18: 0.015 | C18: A
A19: Number LEDs | B19: 5 | C19: qty
A20: Q2 collector current | B20: =B18*B19 -> 0.075
A21: Q2 Beta | B21: 50 | C21: Beta
A22: Q2 Base Drive | B22: =B20/B21 -> 0.0015 | C22: A
A23: Q2 Vbe | B23: 0.6 | C23: v
A24: Port Pin Vout High | B24: 3.1 | C24: v
A25: R14 Base Drive resistor | B25: =(B24-B23)/B22 -> 1666.666667 | C25: ohm
A26: Nearest 1% value | B26: =IF(B25>(INT(0.5+100*POWER(10,IF(96*(LOG(B25)-INT(LOG(B25)))-ROUND(96*(LOG(B25)-INT(LOG(B25))),0)<0,ROUND(96*(LOG(B25)-INT(LOG(B25))),0)-1,ROUND(96*(LOG(B25)-INT(LOG(B25))),0))/96)) *POWER(10,INT(LOG(B25))-2) + INT(0.5+100*POWER(10,(IF(96*(LOG(B25)-INT(LOG(B25)))- ROUND(96*(LOG(B25)- INT(LOG(B25))),0)<0, ROUND(96*(LOG(B25)- INT(LOG(B25))),0)-1, ROUND(96*(LOG(B25)- INT(LOG(B25))),0))+1)/96)) * POWER(10,INT(LOG(B25))-2))/2, INT(0.5+100*POWER(10,(IF(96*(LOG(B25)-INT(LOG(B25)))- ROUND(96*(LOG(B25)- INT(LOG(B25))),0)<0, ROUND(96*(LOG(B25)-INT(LOG(B25))),0)-1, ROUND(96*(LOG(B25)-INT(LOG(B25))),0))+1)/96)) *POWER(10,INT(LOG(B25))-2),INT(0.5+100*POWER(10,IF(96*(LOG(B25)-INT(LOG(B25))) -ROUND(96*(LOG(B25)-INT(LOG(B25))),0)<0,ROUND(96*(LOG(B25)-INT(LOG(B25))),0)-1,ROUND(96*(LOG(B25)-INT(LOG(B25))),0))/96)) *POWER(10,INT(LOG(B25))-2)) -> 1650 | C26: ohm
A27: R14 Power dissipation | B27: =(B24-B23)*B22 -> 0.00375 | C27: W
A32: Development LEDs | B32: Value | C32: Units
A33: LED Drive voltage | B33: 3.3 | C33: v
A34: LED voltage drop max | B34: 2.4 | C34: v
A35: LED drive current | B35: 0.005 | C35: A
A36: Series Resistor | B36: =(B33-B34)/B35 -> 180 | C36: ohm
A37: Nearest 1% value | B37: =IF(B36>(INT(0.5+100*POWER(10,IF(96*(LOG(B36)-INT(LOG(B36)))-ROUND(96*(LOG(B36)-INT(LOG(B36))),0)<0,ROUND(96*(LOG(B36)-INT(LOG(B36))),0)-1,ROUND(96*(LOG(B36)-INT(LOG(B36))),0))/96)) *POWER(10,INT(LOG(B36))-2) + INT(0.5+100*POWER(10,(IF(96*(LOG(B36)-INT(LOG(B36)))- ROUND(96*(LOG(B36)- INT(LOG(B36))),0)<0, ROUND(96*(LOG(B36)- INT(LOG(B36))),0)-1, ROUND(96*(LOG(B36)- INT(LOG(B36))),0))+1)/96)) * POWER(10,INT(LOG(B36))-2))/2, INT(0.5+100*POWER(10,(IF(96*(LOG(B36)-INT(LOG(B36)))- ROUND(96*(LOG(B36)- INT(LOG(B36))),0)<0, ROUND(96*(LOG(B36)-INT(LOG(B36))),0)-1, ROUND(96*(LOG(B36)-INT(LOG(B36))),0))+1)/96)) *POWER(10,INT(LOG(B36))-2),INT(0.5+100*POWER(10,IF(96*(LOG(B36)-INT(LOG(B36))) -ROUND(96*(LOG(B36)-INT(LOG(B36))),0)<0,ROUND(96*(LOG(B36)-INT(LOG(B36))),0)-1,ROUND(96*(LOG(B36)-INT(LOG(B36))),0))/96)) *POWER(10,INT(LOG(B36))-2)) -> 178 | C37: ohm
A38: Resistor Power dissipation | B38: =(B33-B34)*B35 -> 0.0045 | C38: W

Sheet Prog
A1: Reset protection | B1: Value | C1: Units
A2: Series Resistor | B2: 100 | C2: ohm
A3: Max voltage diff | B3: 5 | C3: v
A4: Resistor Power Diss | B4: =B3^2/B2 -> 0.25 | C4: W

Sheet Power Supply Loads
A1: Description | B1: Value | C1: Units | E1: Notes
A2: XC2224 | B2: 80 | C2: MHz | E2: Operating frequency
A4: XC2224 Supply current (STOP) | B4: 2 | C4: mA
A6: XC2224 Supply current (active) | B6: =8+0.75*B2 -> 68 | C6: mA | E6: all peripherals active (at specified clock rate)
A7: LED Backlight Driver | B7: 0.5 | C7: mA | E7: assumes simple NPN driver
A8: CAN Transceiver | B8: 70 | C8: mA | E8: dominant state only
A9: LIN Transceiver | B9: 0.5 | C9: mA | E9: Primary power drawn from battery voltage
A10: Other misc circuilts | B10: 2 | C10: mA
A11: total | B11: =SUM(B6:B10) -> 141 | C11: mA
A15: Battery Drain (low power mode) | E15: only functions tied to battery
A16: Battery Voltage | B16: 24 | C16: v | E16: Nominal with power off
A17: Battery Voltage Sense | B17: =1000*B16/118000 -> 0.2033898305 | C17: mA | E17: 100K + 18K voltage divider
A18: LIN Bus (inactive state) | B18: 0.012 | C18: mA | E18: sleep mode
A19: Wake Out Driver | B19: 0.025 | C19: mA
A20: H-Bridge Driver
A21: Power Supply (sleep)

Sheet Analog Power Supply
A1: Description | B1: Value | C1: Units | E1: Notes
A2: LM2936DT-3.3 | B2: 3.3 | C2: v | E2: regulated output voltage, 50 mA max. -50, +60
A4: V Battery min | B4: 9 | C4: v
A5: V Battery nominal | B5: 24 | C5: v
A6: V Battery max | B6: 36 | C6: v
A8: I Load min | B8: 0.5 | C8: mA
A9: I Load nominal | B9: 10 | C9: mA
A10: I Load max | B10: 2 | C10: mA | E10: From PS Loads sheet
A12: Enable Input (V min) | B12: 3 | C12: v
A13: Enable Input (I typ @ 5v) | B13: =1000*0.0000003 -> 0.0003 | C13: mA
A14: Enable Input Series R | B14: 18000 | C14: ohm
A15: Enable Input Load R | B15: 100000 | C15: ohm
A16: Enable Input Series D | B16: 0.6 | C16: v | H16: Diode Drop | I16: 1 | J16: v
A17: Enable Input Zener Clamp | B17: 4.8 | C17: v | E17: 5.6v zener at low current is 4.8v | H17: Current | I17: 0.05 | J17: A
A18: Wake-In Max Voltage | B18: 40 | C18: v | E18: w | H18: Diode Power | I18: =1000*I16*I17 -> 50 | J18: mW
A20: Power dissipation min | B20: =(B4-$B$2)*B8 -> 2.85 | C20: mW
A21: Power dissipation nominal | B21: =(B5-$B$2)*B9 -> 207 | C21: mW
A22: Power dissipation max | B22: =(B6-$B$2)*B10 -> 65.4 | C22: mW | E22: Linear regulator dissipation
A24: Ambient temp nominal | B24: 25 | C24: °C
A25: Ambient temp max | B25: 85 | C25: °C
A27: Junction Temp
A31: Enable Input equiv impedance | B31: =5/B13 -> 16666.66667 | C31: ohms
A32: Wake-In Max Current | B32: =1000*(B18-B17-B16)/B14 -> 1.922222222 | C32: mA
A34: Wake-In Voltage | B34: Enable In (v) | C34: Current (mA) | D34: V-Divider
A35: 0 | B35: =IF($B$17<D35,$B$17,D35) -> 0 | C35: =1000*(A35-B35)/B$14 -> 0 | D35: =A35*B$15/(B$14+B$15) -> 0
A36: 0.5 | B36: =IF($B$17<D36,$B$17,D36) -> 0.4237288136 | C36: =1000*(A36-B36)/B$14 -> 0.004237288136 | D36: =A36*B$15/(B$14+B$15) -> 0.4237288136
A37: 1 | B37: 0.8474576271 | C37: 0.008474576271 | D37: 0.8474576271
A38: 1.5 | B38: 1.271186441 | C38: 0.01271186441 | D38: 1.271186441
A39: 2 | B39: 1.694915254 | C39: 0.01694915254 | D39: 1.694915254
A40: 2.5 | B40: 2.118644068 | C40: 0.02118644068 | D40: 2.118644068
A41: 3 | B41: 2.542372881 | C41: 0.02542372881 | D41: 2.542372881
A42: 3.5 | B42: 2.966101695 | C42: 0.02966101695 | D42: 2.966101695
A43: 4 | B43: 3.389830508 | C43: 0.03389830508 | D43: 3.389830508
A44: 4.5 | B44: 3.813559322 | C44: 0.03813559322 | D44: 3.813559322
A45: 5 | B45: 4.237288136 | C45: 0.04237288136 | D45: 4.237288136
A46: 5.5 | B46: 4.661016949 | C46: 0.04661016949 | D46: 4.661016949
A47: 6 | B47: 4.8 | C47: 0.06666666667 | D47: 5.084745763
A48: 6.5 | B48: 4.8 | C48: 0.09444444444 | D48: 5.508474576
A49: 7 | B49: 4.8 | C49: 0.1222222222 | D49: 5.93220339
A50: 7.5 | B50: 4.8 | C50: 0.15 | D50: 6.355932203
A51: 8 | B51: 4.8 | C51: 0.1777777778 | D51: 6.779661017
A52: 8.5 | B52: 4.8 | C52: 0.2055555556 | D52: 7.203389831
A53: 9 | B53: 4.8 | C53: 0.2333333333 | D53: 7.627118644
A54: 10 | B54: 4.8 | C54: 0.2888888889 | D54: 8.474576271
A55: 12 | B55: 4.8 | C55: 0.4 | D55: 10.16949153
A56: 14 | B56: 4.8 | C56: 0.5111111111 | D56: 11.86440678
A57: 16 | B57: 4.8 | C57: 0.6222222222 | D57: 13.55932203
A58: 18 | B58: 4.8 | C58: 0.7333333333 | D58: 15.25423729
A59: 20 | B59: 4.8 | C59: 0.8444444444 | D59: 16.94915254
A60: 22 | B60: 4.8 | C60: 0.9555555556 | D60: 18.6440678
A61: 24 | B61: 4.8 | C61: 1.066666667 | D61: 20.33898305
A62: 26 | B62: 4.8 | C62: 1.177777778 | D62: 22.03389831
A63: 28 | B63: 4.8 | C63: 1.288888889 | D63: 23.72881356
A64: 30 | B64: 4.8 | C64: 1.4 | D64: 25.42372881
A65: 32 | B65: 4.8 | C65: 1.511111111 | D65: 27.11864407
A66: 34 | B66: 4.8 | C66: 1.622222222 | D66: 28.81355932
A67: 36 | B67: 4.8 | C67: 1.733333333 | D67: 30.50847458
A68: 38 | B68: 4.8 | C68: 1.844444444 | D68: 32.20338983
A69: 40 | B69: 4.8 | C69: 1.955555556 | D69: 33.89830508
A70: 42 | B70: 4.8 | C70: 2.066666667 | D70: 35.59322034

Sheet Motor
A1: Description | B1: Value | C1: Units | D1: Notes
A2: Min Voltage | B2: 9 | C2: V | D2: Assumes the motor is rated to operate at this minimum voltage
A3: Motor Current @Min V | B3: 5 | C3: A | D3: And current
A4: Power Min | B4: =B2*B3 -> 45 | C4: W
A6: Voltage 1 | B6: 12 | C6: V
A7: Motor Current @V1 | B7: =B$3 * B6/B$2 -> 6.666666667 | C7: A
A8: Power 1 | B8: =B6*B7 -> 80 | C8: W
A10: Voltage 2 | B10: 24 | C10: V
A11: Motor Current @V2 | B11: =B$3 * B10/B$2 -> 13.33333333 | C11: A
A12: Power 2 | B12: =B10*B11 -> 320 | C12: W
A14: Voltage 2 | B14: 32 | C14: V
A15: Motor Current @V2 | B15: =B$3 * B14/B$2 -> 17.77777778 | C15: A
A16: Power 3 | B16: =B14*B15 -> 568.8888889 | C16: W

Sheet Components
A1: Category | B1: ScratchNotes | C1: Additional Notes
A2: H-Bridge | B2: BTN7960/70/71 | C2: half-Bridge 40V 40A | D2: requires 2 part
A3: H-Bridge | B3: TLE6208-3 | C3: 3 half-bridge .8A 32v | D3: 0.8A not enough
A4: H-Bridge | B4: TLE8201R | C4: Full Door module - Mirror w/heat/light | D4: too many functions - cost
A5: H-Bridge | B5: TLE8203E | C5: Full Door module - Mirror w/heat/light | D5: not enough current
A6: H-Bridge | B6: TLE84106EL | C6: Hex half-bridge | D6: 18v, 0.8A
A7: H-Bridge | B7: TLE7181EM | C7: H-Bridge Driver: 34v, 10 uA quiescient, lots of features (may cost too much) | D7: Pre-Driver for mosfets
A8: H-Bridge | B8: BTM7740G | C8: 8A peak (25C), 5uA quiesc, 40V
A9: H-Bridge | B9: TLE5205 | C9: 4A 40V status
A10: H-Bridge | B10: TLE5206 | C10: 4A 40V status
B12: BTS50015 | C12: Single high-side 28V 33A, 18uA standby | D12: If we need a pre-enable
A14: System Basis Chip | B14: TLE8261E | C14: System Basis Chip, reg, CAN transceiver, watchdog | D14: very interesting combination of parts, but for a system that does not need them all, this is overkill and no alternate sourcing.
A15: System Basis Chip | B15: TLE8262E | C15: 1xLIN
A16: System Basis Chip | B16: TLE8263E | C16: 2xLIN
A17: System Basis Chip | B17: TLE8264E | C17: 3xLIN
A18: System Basis Chip | B18: TLE6266G | C18: CAN, Watchdog | D18: on special request only
A19: Window Lift Module | B19: TLE7810 | C19: Full Window Control on LIN w/8051
A22: Power Supply | B22: TLE6365G | C22: step down w/reset 8 to 40v | D22: no enable
A23: Power Supply | B23: TLE6711G | C23: boost/buck, watchdog, enable | D23: watchdog compatibility
A24: Power Supply | B24: TLE7368E | C24: 5.5v, reset, watchdog | D24: overkill - for high end multi-voltage
A25: Power Supply | B25: TLE4278G | C25: Reset, watchdog | D25: linear part, but with possibly adequate heat-sink
A26: Power Supply | B26: LTC3115-1 | C26: buck-boost, 2.7-40v, 5v1A out, enable, burst mode
A27: Power Supply | B27: LT3433 | C27: buck-boost, 4-60v, 5v .3A, enable
A28: Power Supply | B28: LT3689 | C28: step-down, por, wdt | D28: wdt compatibility?
A29: Power Supply | B29: LT3682 | C29: uPower step down,
A30: Power Supply | B30: LT3631 | C30: 4.5 to 45 to 5v@100mA | D30: nice, but 100mA max
A31: Power Supply | B31: LT3470A | C31: buck reg 12v to 5v@250mA | D31: 8-pin
A32: Power Supply | B32: LTM8021 | C32: 7.5-36v to 5v@500mA | D32: full uModule w most parts (LGA pkg)
A33: Power Supply | B33: LT3502 | C33: 7-40v to 5v@500mA
A34: Power Supply | B34: LT3970 | C34: 7-40 to 5v@350mA, enable, power good out | D34: 10-pin
A35: Power Supply | B35: LT1934ES6 | C35: 6.5-34v to 5v@250mA, enable | D35: 6-pin
A39: Capacitive Touch Sense | C39: Can share matrix with backlight LEDs
A42: Key | B42: Not yet analyzed | C42: part identified from initial scan/research
B43: Candidate Parts | C43: looks even better
B44: Candidate Parts | C44: seems to mee the requirements
B45: Defer rejection | C45: further analysis may be required
B46: Rejected | C46: not appropriate for this project (reason noted)

Sheet Acoustic
A1: Acoustic Signal
A2: 4khz - http://www.soundsnap.com/search/audio/4khz/popular
A3: 2khz - http://www.soundsnap.com/search/audio/2khz/popular
A5: Manufacturer | B5: Freq | C5: Temp Range | D5: $ ea | E5: $ @500 | F5: Web
A7: CUI Inc (smd) | B7: 4 khz | C7: '-30 + 70 | D7: $4.81 qty 1 | E7: $2.49 qty 500 | F7: http://search.digikey.com/us/en/products/CMI-1240/102-1196-5-ND/504829
A8: CUI Inc (thru hole) | B8: 4 khz | C8: '-20 +70 | D8: $3.19 qty 1 | E8: $1.65 qty 500 | F8: http://search.digikey.com/us/en/products/CEP-2242/102-1115-ND/412374
A9: PUI Audio (thru hole) | B9: 4 khz | C9: '-20 +70 | D9: $3.66 qty 1 | E9: $2.20 qty 500 | F9: http://search.digikey.com/us/en/products/AI-1440-TWT-12V-R/668-1024-ND/1464763
A10: Mallory (thru hole) | B10: 4.1 khz | C10: '-20 + 90 | D10: $2.43 qty 1 | E10: $2.09 qty 500 | F10: http://search.digikey.com/us/en/products/PK-12N40PQ/458-1066-ND/969793
A11: Kobiton (thru hole) | B11: 4 khz | C11: '-20 + 105 | D11: $4.26 qty 1 | E11: $2.59 qty 500 | F11: http://www.mouser.com/ProductDetail/Kobitone/254-15210-ROX/?qs=05UEgX2TgG1gFl%2faATOCEw%3d%3d
A15: Acoustic Supply | B15: 12 | C15: v
A16: Acoustic Current | B16: 0.005 | C16: A
A17: Driver gain (min) | B17: 50
A18: Base Drive Current | B18: =B16/B17 -> 0.0001 | C18: A
A19: Base Drive Voltage | B19: 3.3 | C19: v
A20: Base Drive Resistance | B20: =B19/B18 -> 33000

Sheet LIN Xcvr
A1: Vendor | B1: Part # | C1: LIN V | D1: Price | E1: Qty | F1: V Reg | G1: Vreg | H1: Temp | I1: V Supply | J1: Bus Voltage | K1: Load Dump | L1: 3v IO | M1: Normal | N1: Sleep | O1: Standby | P1: Wakup Pin | Q1: Tx timeout
A2: ON Semi | B2: NCV7321 | F2: N | H2: -40, +125 | I2: 27 | J2: 45 | K2: 45v | L2: Y | M2: Y | N2: 20 uA | O2: Y
A3: TI | B3: SN65HVDA195-Q1 | D3: 0.47 | E3: 1000 | F3: N | H3: -40, +125 | I3: 27 | J3: 40 | L3: Y | P3: Y | Q3: No
A4: TI | B4: TPIC1021A-Q1 - | D4: 0.4 | E4: 1000 | F4: N | H4: -40, +125 | I4: 27 | J4: 40 | L4: Y | P4: Y | Q4: Yes
A5: NXP | B5: TJA1028TK/3V3 | F5: Y | G5: 3.3v @ 70mA | H5: -40, +150 | I5: 40 | J5: 40 | L5: Y | N5: 12uA | O5: 45uA | Q5: Yes
A6: NXP | B6: TJA1028TK/5V0 | D6: 0.7 | E6: 1500 | F6: Y | G6: 5.0v @ 70mA | H6: -40, +150 | I6: 40 | J6: 40 | L6: Y | N6: 12uA | O6: 45uA | Q6: Yes
A7: NXP | B7: TJA1021 | C7: 2.1 | D7: 0.46 | E7: 2500 | F7: N | H7: -40, +150 | I7: 40 | Q7: Yes
A8: NXP | B8: TJA1022 | C8: 2.2 | F8: N | H8: -40, +150 | I8: 40 | Q8: Yes
A9: Infineon | B9: TLE6258 | C9: 2
A10: Infineon | B10: TLE7259-2GE | C10: 2
A11: Infineon | B11: TLE8458GV33 | C11: 2.1 | D11: 1.03 | E11: 2500 | F11: Y | G11: 3.3 @ 50mA | L11: Y | M11: Y | P11: Y | Q11: Yes
A12: Infineon | B12: TLE8458G | C12: 2.1 | D12: 1.03 | E12: 2500 | F12: Y | G12: 5.0 @ 50mA | H12: -40, +150 | I12: 40 | J12: 40 | L12: Y | P12: Y
A13: Micrchip | B13: MCP2021 | C13: 2.1 | D13: 0.95 | E13: 500 | F13: Y | G13: 3.3 @ 50mA | H13: -40, +125 | I13: 30 | K13: 43
A14: Micrchip | B14: MCP2021 | C14: 2.1 | D14: 0.95 | E14: 500 | F14: Y | G14: 5.0 @ 50mA | H14: -40, +125 | I14: 30 | K14: 43
A20: Microcontroller | F20: Qtouch
A21: Atmel | B21: ATA66xx | D21: 2.81 | E21: 1000
A22: Atmel | B22: ATmega16M1 | D22: 3.87 | E22: 1600
A23: Atmel | B23: ATtiny167 | D23: 1.75 | E23: 1500

Sheet Ribbon Con
A1: Pin | B1: X | C1: Y | D1: Units
A2: 1 | B2: =-2.5-1.25/2 -> -3.125 | C2: 1 | D2: mm
A3: 2 | B3: =(A3-A$2)*1.25+B$2 -> -1.875 | C3: =C2-2 -> -1 | D3: mm
A4: 3 | B4: =(A4-A$2)*1.25+B$2 -> -0.625 | C4: =C2 -> 1 | D4: mm
A5: 4 | B5: =(A5-A$2)*1.25+B$2 -> 0.625 | C5: =C3 -> -1 | D5: mm
A6: 5 | B6: =(A6-A$2)*1.25+B$2 -> 1.875 | C6: =C4 -> 1 | D6: mm
A7: 6 | B7: =(A7-A$2)*1.25+B$2 -> 3.125 | C7: =C5 -> -1 | D7: mm
A9: Housing Left | B9: =-13.25/2 -> -6.625
A10: Housing Right | B10: =-B9 -> 6.625
A11: Slot Left | B11: =-8.95/2 -> -4.475
A12: Slot Right | B12: =-B11 -> 4.475
A16: Pin | B16: X | C16: Y | D16: Units
A17: 1 | B17: -1.25 | C17: 1 | D17: mm
A18: 2 | B18: =(A18-A$17)*1.25+B$17 -> 0 | C18: =C17-2 -> -1 | D18: mm
A19: 3 | B19: =(A19-A$17)*1.25+B$17 -> 1.25 | C19: =C17 -> 1 | D19: mm
A22: Housing Left | B22: =-9.5/2 -> -4.75
A23: Housing Right | B23: =-B22 -> 4.75
A24: Slot Left | B24: =-5.2/2 -> -2.6
A25: Slot Right | B25: =-B24 -> 2.6
B27: 84.86 | C27: mm
B28: =B27/25.4 -> 3.340944882
B29: 21.79 | C29: mm
B30: =B29/25.4 -> 0.8578740157
